[Event "Titled Tuesday Blitz November 15 Early 2022"]
[White "Alfaro, William"]
[Black "Palencia Morales, Wilson Guillermo"]
[WhiteFideId "6100457"]
[BlackFideId "4401859"]
[WhiteElo "2096"]
[BlackElo "2160"]
[Result "0-1"]
[Round "03"]
[TimeControl "180+1"]
[Date "2022.11.16"]
[WhiteClock "0:00:09"]
[BlackClock "0:00:03"]

1. e4 {[%clk 0:03:00]}  c5 {[%clk 0:02:59]} 2. Nf3 {[%clk 0:03:00]}  d6 {[%clk 0:02:59]} 3. d4 {[%clk 0:03:00]}  cxd4 {[%clk 0:03:00]} 4. Nxd4 {[%clk 0:03:00]}  Nf6 {[%clk 0:03:00]} 5. Nc3 {[%clk 0:02:55]}  g6 {[%clk 0:03:00]} 6. f3 {[%clk 0:02:38]}  Bg7 {[%clk 0:02:58]} 7. Be3 {[%clk 0:02:38]}  O-O {[%clk 0:02:53]} 8. Qd2 {[%clk 0:02:37]}  Nc6 {[%clk 0:02:53]} 9. Nb3 {[%clk 0:02:31]}  Be6 {[%clk 0:02:46]} 10. O-O-O {[%clk 0:02:29]}  a5 {[%clk 0:02:40]} 11. Nd4 {[%clk 0:01:39]}  Nxd4 {[%clk 0:02:37]} 12. Bxd4 {[%clk 0:01:39]}  a4 {[%clk 0:02:37]} 13. a3 {[%clk 0:01:36]}  Qa5 {[%clk 0:02:37]} 14. Kb1 {[%clk 0:01:31]}  Rfc8 {[%clk 0:02:36]} 15. g4 {[%clk 0:01:08]}  Rab8 {[%clk 0:01:06]} 16. h4 {[%clk 0:00:48]}  b5 {[%clk 0:01:04]} 17. h5 {[%clk 0:00:36]}  b4 {[%clk 0:00:53]} 18. axb4 {[%clk 0:00:19]}  Qxb4 {[%clk 0:00:51]} 19. Nd5 {[%clk 0:00:15]}  Bxd5 {[%clk 0:00:26]} 20. Qxb4 {[%clk 0:00:14]}  Rxb4 {[%clk 0:00:22]} 21. exd5 {[%clk 0:00:15]}  Rxd4 {[%clk 0:00:18]} 22. Rxd4 {[%clk 0:00:15]}  Nxh5 {[%clk 0:00:18]} 23. Rxa4 {[%clk 0:00:15]}  Ng3 {[%clk 0:00:13]} 24. Rg1 {[%clk 0:00:15]}  Nxf1 {[%clk 0:00:12]} 25. Rxf1 {[%clk 0:00:16]}  Rb8 {[%clk 0:00:12]} 26. b3 {[%clk 0:00:16]}  Rb5 {[%clk 0:00:11]} 27. Rd1 {[%clk 0:00:15]}  Be5 {[%clk 0:00:10]} 28. Ka2 {[%clk 0:00:14]}  Kg7 {[%clk 0:00:10]} 29. c4 {[%clk 0:00:15]}  Rb7 {[%clk 0:00:10]} 30. b4 {[%clk 0:00:15]}  Rc7 {[%clk 0:00:09]} 31. Kb3 {[%clk 0:00:15]}  h5 {[%clk 0:00:09]} 32. Ra5 {[%clk 0:00:16]}  h4 {[%clk 0:00:08]} 33. Rh1 {[%clk 0:00:16]}  Bg3 {[%clk 0:00:07]} 34. c5 {[%clk 0:00:16]}  Rc8 {[%clk 0:00:06]} 35. c6 {[%clk 0:00:17]}  Kf6 {[%clk 0:00:06]} 36. Kc4 {[%clk 0:00:17]}  Ke5 {[%clk 0:00:06]} 37. b5 {[%clk 0:00:17]}  e6 {[%clk 0:00:06]} 38. dxe6 {[%clk 0:00:17]}  Kxe6 {[%clk 0:00:06]} 39. Ra7 {[%clk 0:00:17]}  d5+ {[%clk 0:00:06]} 40. Kb4 {[%clk 0:00:17]}  Rb8 {[%clk 0:00:05]} 41. Ka5 {[%clk 0:00:15]}  d4 {[%clk 0:00:02]} 42. Rd7 {[%clk 0:00:15]}  Bf2 {[%clk 0:00:01]} 43. b6 {[%clk 0:00:13]}  d3 {[%clk 0:00:01]} 44. Rxd3 {[%clk 0:00:12]}  Bxb6+ {[%clk 0:00:01]} 45. Ka6 {[%clk 0:00:13]}  Bc7 {[%clk 0:00:01]} 46. Re1+ {[%clk 0:00:13]}  Kf6 {[%clk 0:00:01]} 47. Rd7 {[%clk 0:00:14]}  Bg3 {[%clk 0:00:01]} 48. Rg1 {[%clk 0:00:14]}  Rb2 {[%clk 0:00:01]} 49. c7 {[%clk 0:00:14]}  Rc2 {[%clk 0:00:02]} 50. Kb7 {[%clk 0:00:15]}  Rb2+ {[%clk 0:00:02]} 51. Kc8 {[%clk 0:00:15]}  Rc2 {[%clk 0:00:02]} 52. Kd8 {[%clk 0:00:16]}  Bxc7+ {[%clk 0:00:02]} 53. Rxc7 {[%clk 0:00:16]}  Rf2 {[%clk 0:00:03]} 54. Kc8 {[%clk 0:00:16]}  Rxf3 {[%clk 0:00:03]} 55. Rc6+ {[%clk 0:00:16]}  Kg5 {[%clk 0:00:03]} 56. Rc5+ {[%clk 0:00:17]}  Kf4 {[%clk 0:00:03]} 57. g5 {[%clk 0:00:16]}  Rg3 {[%clk 0:00:03]} 58. Rc4+ {[%clk 0:00:16]}  Kxg5 {[%clk 0:00:03]} 59. Rf1 {[%clk 0:00:14]}  f5 {[%clk 0:00:03]} 60. Kd7 {[%clk 0:00:14]}  h3 {[%clk 0:00:03]} 61. Rc2 {[%clk 0:00:14]}  Kg4 {[%clk 0:00:02]} 62. Ke6 {[%clk 0:00:13]}  Rg2 {[%clk 0:00:02]} 63. Rc3 {[%clk 0:00:11]}  f4 {[%clk 0:00:01]} 64. Ke5 {[%clk 0:00:11]}  g5 {[%clk 0:00:02]} 65. Ke4 {[%clk 0:00:11]}  Re2+ {[%clk 0:00:02]} 66. Kd3 {[%clk 0:00:11]}  Re3+ {[%clk 0:00:02]} 67. Kd2 {[%clk 0:00:12]}  Rxc3 {[%clk 0:00:02]} 68. Kxc3 {[%clk 0:00:13]}  Kg3 {[%clk 0:00:02]} 69. Rh1 {[%clk 0:00:08]}  Kg2 {[%clk 0:00:02]} 70. Kd2 {[%clk 0:00:08]}  Kxh1 {[%clk 0:00:02]} 71. Ke2 {[%clk 0:00:09]}  Kg2 {[%clk 0:00:03]} 0-1


[Site "https://www.chess.com"]

[Event "Titled Tuesday Blitz November 15 Early 2022"]
[White "Alhadad, Mahmoud"]
[Black "Player, Edmund C"]
[WhiteFideId "11501863"]
[BlackFideId "406520"]
[WhiteElo "1955"]
[BlackElo "2103"]
[Result "0-1"]
[Round "03"]
[TimeControl "180+1"]
[Date "2022.11.16"]
[WhiteClock "0:00:02"]
[BlackClock "0:01:08"]

1. e4 {[%clk 0:03:00]}  e5 {[%clk 0:02:59]} 2. d4 {[%clk 0:02:59]}  exd4 {[%clk 0:02:55]} 3. Bc4 {[%clk 0:03:00]}  Nf6 {[%clk 0:02:51]} 4. Nf3 {[%clk 0:03:00]}  d5 {[%clk 0:02:49]} 5. exd5 {[%clk 0:02:53]}  Bb4+ {[%clk 0:02:43]} 6. c3 {[%clk 0:02:52]}  dxc3 {[%clk 0:02:42]} 7. O-O {[%clk 0:02:52]}  O-O {[%clk 0:02:39]} 8. Nxc3 {[%clk 0:02:47]}  h6 {[%clk 0:02:36]} 9. Bf4 {[%clk 0:02:31]}  Bg4 {[%clk 0:02:30]} 10. h3 {[%clk 0:02:29]}  Bh5 {[%clk 0:02:29]} 11. g4 {[%clk 0:02:29]}  Bg6 {[%clk 0:02:22]} 12. g5 {[%clk 0:02:29]}  Nh5 {[%clk 0:02:20]} 13. Qd2 {[%clk 0:02:22]}  Nxf4 {[%clk 0:02:15]} 14. Qxf4 {[%clk 0:02:23]}  Bd6 {[%clk 0:02:15]} 15. Qg4 {[%clk 0:02:06]}  h5 {[%clk 0:01:59]} 16. Qg2 {[%clk 0:01:45]}  Nd7 {[%clk 0:01:58]} 17. Nh4 {[%clk 0:01:42]}  Ne5 {[%clk 0:01:57]} 18. Nxg6 {[%clk 0:01:42]}  fxg6 {[%clk 0:01:56]} 19. Be2 {[%clk 0:01:32]}  Qd7 {[%clk 0:01:54]} 20. Ne4 {[%clk 0:01:16]}  Rf4 {[%clk 0:01:49]} 21. Nxd6 {[%clk 0:01:15]}  Qxd6 {[%clk 0:01:49]} 22. Rac1 {[%clk 0:00:55]}  Raf8 {[%clk 0:01:47]} 23. Rc3 {[%clk 0:00:43]}  h4 {[%clk 0:01:41]} 24. f3 {[%clk 0:00:14]}  R8f5 {[%clk 0:01:37]} 25. Kh1 {[%clk 0:00:10]}  Nf7 {[%clk 0:01:36]} 26. Qf2 {[%clk 0:00:09]}  Rxg5 {[%clk 0:01:26]} 27. Qc5 {[%clk 0:00:07]}  Qd7 {[%clk 0:01:22]} 28. Rf2 {[%clk 0:00:02]}  Qxh3+ {[%clk 0:01:09]} 29. Rh2 {[%clk 0:00:03]}  Qg3 {[%clk 0:01:10]} 30. Qxc7 {[%clk 0:00:02]}  Qg1# {[%clk 0:01:08]} 0-1


[Site "https://www.chess.com"]

[Event "Titled Tuesday Blitz November 15 Early 2022"]
[White "Astafurov, Arseniy"]
[Black "Pinero Rodriguez, Carlos Jose"]
[WhiteFideId "24175218"]
[BlackFideId "3901726"]
[WhiteElo "2163"]
[BlackElo "2146"]
[Result "1-0"]
[Round "03"]
[TimeControl "180+1"]
[Date "2022.11.16"]
[WhiteClock "0:01:18"]
[BlackClock "0:02:06"]

1. c4 {[%clk 0:02:58]}  Nf6 {[%clk 0:02:58]} 2. Nc3 {[%clk 0:02:58]}  e6 {[%clk 0:02:59]} 3. e4 {[%clk 0:02:59]}  c5 {[%clk 0:02:58]} 4. e5 {[%clk 0:02:58]}  Ng8 {[%clk 0:02:58]} 5. d4 {[%clk 0:02:49]}  cxd4 {[%clk 0:02:57]} 6. Qxd4 {[%clk 0:02:50]}  Nc6 {[%clk 0:02:57]} 7. Qf4 {[%clk 0:02:50]}  Qc7 {[%clk 0:02:55]} 8. Nf3 {[%clk 0:02:49]}  Bb4 {[%clk 0:02:53]} 9. Bd2 {[%clk 0:02:45]}  Bxc3 {[%clk 0:02:53]} 10. Bxc3 {[%clk 0:02:44]}  Nge7 {[%clk 0:02:53]} 11. Qg3 {[%clk 0:02:37]}  Ng6 {[%clk 0:02:50]} 12. h4 {[%clk 0:02:37]}  h5 {[%clk 0:02:43]} 13. Bd3 {[%clk 0:02:36]}  b6 {[%clk 0:02:39]} 14. Bxg6 {[%clk 0:02:28]}  fxg6 {[%clk 0:02:35]} 15. Qxg6+ {[%clk 0:02:28]}  Kd8 {[%clk 0:02:33]} 16. Ng5 {[%clk 0:01:35]}  Nxe5 {[%clk 0:02:16]} 17. Qxg7 {[%clk 0:01:28]}  Nd3+ {[%clk 0:02:12]} 18. Kf1 {[%clk 0:01:20]}  Re8 {[%clk 0:02:06]} 19. Nf7+ {[%clk 0:01:17]}  Ke7 {[%clk 0:02:06]} 20. Bf6# {[%clk 0:01:18]} 1-0


[Site "https://www.chess.com"]

[Event "Titled Tuesday Blitz November 15 Early 2022"]
[White "Aumann, Welf"]
[Black "Cruz, Jonathan"]
[WhiteFideId "4634071"]
[BlackFideId "3802124"]
[WhiteElo "2263"]
[BlackElo "2406"]
[Result "0-1"]
[Round "03"]
[TimeControl "180+1"]
[Date "2022.11.16"]
[WhiteClock "0:00:02"]
[BlackClock "0:00:14"]

1. c4 {[%clk 0:03:00]}  c6 {[%clk 0:02:49]} 2. g3 {[%clk 0:03:00]}  d5 {[%clk 0:02:49]} 3. Bg2 {[%clk 0:03:01]}  Nf6 {[%clk 0:02:49]} 4. Nf3 {[%clk 0:03:02]}  g6 {[%clk 0:02:48]} 5. b3 {[%clk 0:03:01]}  Bg7 {[%clk 0:02:48]} 6. Bb2 {[%clk 0:03:01]}  O-O {[%clk 0:02:49]} 7. d3 {[%clk 0:03:01]}  b6 {[%clk 0:02:45]} 8. Nbd2 {[%clk 0:02:58]}  Bb7 {[%clk 0:02:46]} 9. O-O {[%clk 0:02:58]}  c5 {[%clk 0:02:45]} 10. cxd5 {[%clk 0:02:55]}  Bxd5 {[%clk 0:02:44]} 11. a3 {[%clk 0:02:45]}  Nc6 {[%clk 0:02:44]} 12. Nc4 {[%clk 0:02:28]}  Qd7 {[%clk 0:02:24]} 13. Qc2 {[%clk 0:01:51]}  Rfd8 {[%clk 0:02:17]} 14. e4 {[%clk 0:01:40]}  Be6 {[%clk 0:01:51]} 15. Rad1 {[%clk 0:01:25]}  Rac8 {[%clk 0:01:45]} 16. Nfe5 {[%clk 0:01:10]}  Nxe5 {[%clk 0:01:31]} 17. Nxe5 {[%clk 0:01:11]}  Qb5 {[%clk 0:01:31]} 18. Nc4 {[%clk 0:01:07]}  Nd7 {[%clk 0:01:14]} 19. Bxg7 {[%clk 0:01:03]}  Kxg7 {[%clk 0:01:14]} 20. f4 {[%clk 0:00:58]}  Nb8 {[%clk 0:01:05]} 21. f5 {[%clk 0:00:53]}  Bxc4 {[%clk 0:00:59]} 22. dxc4 {[%clk 0:00:54]}  Qe8 {[%clk 0:00:43]} 23. e5 {[%clk 0:00:53]}  Nc6 {[%clk 0:00:39]} 24. f6+ {[%clk 0:00:50]}  exf6 {[%clk 0:00:37]} 25. exf6+ {[%clk 0:00:51]}  Kg8 {[%clk 0:00:32]} 26. Rde1 {[%clk 0:00:27]}  Qf8 {[%clk 0:00:30]} 27. Bxc6 {[%clk 0:00:20]}  Rxc6 {[%clk 0:00:30]} 28. Qf2 {[%clk 0:00:19]}  Rdd6 {[%clk 0:00:18]} 29. Qf4 {[%clk 0:00:16]}  Rxf6 {[%clk 0:00:18]} 30. Qxf6 {[%clk 0:00:15]}  Rxf6 {[%clk 0:00:19]} 31. Rxf6 {[%clk 0:00:15]}  Qd8 {[%clk 0:00:18]} 32. Rf3 {[%clk 0:00:12]}  Qd4+ {[%clk 0:00:18]} 33. Rfe3 {[%clk 0:00:11]}  Kg7 {[%clk 0:00:18]} 34. Kg2 {[%clk 0:00:11]}  h5 {[%clk 0:00:18]} 35. h4 {[%clk 0:00:11]}  Qd2+ {[%clk 0:00:18]} 36. R1e2 {[%clk 0:00:10]}  Qd6 {[%clk 0:00:18]} 37. a4 {[%clk 0:00:10]}  a6 {[%clk 0:00:16]} 38. Re7 {[%clk 0:00:10]}  Qc6+ {[%clk 0:00:16]} 39. Kh2 {[%clk 0:00:09]}  Qf3 {[%clk 0:00:13]} 40. R7e3 {[%clk 0:00:08]}  Qf1 {[%clk 0:00:12]} 41. Re7 {[%clk 0:00:06]}  Qf5 {[%clk 0:00:11]} 42. R7e3 {[%clk 0:00:06]}  Qf6 {[%clk 0:00:11]} 43. Kg2 {[%clk 0:00:05]}  Qc6+ {[%clk 0:00:11]} 44. Rf3 {[%clk 0:00:05]}  Qb7 {[%clk 0:00:11]} 45. Rf2 {[%clk 0:00:05]}  f5 {[%clk 0:00:11]} 46. Kh2 {[%clk 0:00:05]}  Kh6 {[%clk 0:00:11]} 47. Re3 {[%clk 0:00:05]}  Qc7 {[%clk 0:00:10]} 48. Rfe2 {[%clk 0:00:05]}  f4 {[%clk 0:00:11]} 49. gxf4 {[%clk 0:00:04]}  Qxf4+ {[%clk 0:00:11]} 50. Kh3 {[%clk 0:00:04]}  Qf5+ {[%clk 0:00:12]} 51. Kg3 {[%clk 0:00:04]}  Qg4+ {[%clk 0:00:12]} 52. Kh2 {[%clk 0:00:04]}  Qxh4+ {[%clk 0:00:13]} 53. Kg1 {[%clk 0:00:05]}  Qg4+ {[%clk 0:00:13]} 54. Kf1 {[%clk 0:00:05]}  Qf4+ {[%clk 0:00:14]} 55. Ke1 {[%clk 0:00:05]}  Qf6 {[%clk 0:00:14]} 56. Kd1 {[%clk 0:00:04]}  Qa1+ {[%clk 0:00:14]} 57. Kc2 {[%clk 0:00:04]}  Qf6 {[%clk 0:00:14]} 58. Kb1 {[%clk 0:00:04]}  Qf5+ {[%clk 0:00:15]} 59. Ka2 {[%clk 0:00:04]}  h4 {[%clk 0:00:15]} 60. Rd3 {[%clk 0:00:02]}  Qxd3 {[%clk 0:00:14]} 0-1


[Site "https://www.chess.com"]

[Event "Titled Tuesday Blitz November 15 Early 2022"]
[White "Avazkhonov, Alikhon"]
[Black "Zivkovic, Nemanja"]
[WhiteFideId "14208504"]
[BlackFideId "942154"]
[WhiteElo "1739"]
[BlackElo "2372"]
[Result "0-1"]
[Round "03"]
[TimeControl "180+1"]
[Date "2022.11.16"]
[WhiteClock "0:00:07"]
[BlackClock "0:00:57"]

1. d4 {[%clk 0:03:00]}  Nf6 {[%clk 0:02:57]} 2. c4 {[%clk 0:03:01]}  e6 {[%clk 0:02:57]} 3. Nc3 {[%clk 0:03:01]}  Bb4 {[%clk 0:02:54]} 4. e3 {[%clk 0:03:01]}  O-O {[%clk 0:02:54]} 5. Bd2 {[%clk 0:03:00]}  d5 {[%clk 0:02:54]} 6. Nf3 {[%clk 0:03:00]}  b6 {[%clk 0:02:48]} 7. cxd5 {[%clk 0:03:00]}  exd5 {[%clk 0:02:46]} 8. Rc1 {[%clk 0:03:01]}  Bb7 {[%clk 0:02:39]} 9. Ne5 {[%clk 0:02:41]}  Nbd7 {[%clk 0:02:37]} 10. Bd3 {[%clk 0:02:37]}  Nxe5 {[%clk 0:02:32]} 11. dxe5 {[%clk 0:02:38]}  Nd7 {[%clk 0:02:33]} 12. f4 {[%clk 0:02:27]}  Nc5 {[%clk 0:02:30]} 13. Bc2 {[%clk 0:02:25]}  d4 {[%clk 0:02:22]} 14. exd4 {[%clk 0:01:35]}  Qxd4 {[%clk 0:02:17]} 15. a3 {[%clk 0:01:28]}  Bxg2 {[%clk 0:02:12]} 16. axb4 {[%clk 0:01:25]}  Bxh1 {[%clk 0:02:12]} 17. bxc5 {[%clk 0:01:18]}  Qg1+ {[%clk 0:02:07]} 18. Ke2 {[%clk 0:01:18]}  Qxh2+ {[%clk 0:02:08]} 19. Ke3 {[%clk 0:01:03]}  Qg3+ {[%clk 0:02:00]} 20. Kd4 {[%clk 0:00:59]}  Bc6 {[%clk 0:01:52]} 21. cxb6 {[%clk 0:00:22]}  Qf2+ {[%clk 0:01:47]} 22. Be3 {[%clk 0:00:22]}  Rad8+ {[%clk 0:01:44]} 23. Kc4 {[%clk 0:00:21]}  Qxe3 {[%clk 0:01:43]} 24. Qh5 {[%clk 0:00:07]}  g6 {[%clk 0:01:30]} 25. Qh6 {[%clk 0:00:07]}  Qxc1 {[%clk 0:00:57]} 0-1


[Site "https://www.chess.com"]

[Event "Titled Tuesday Blitz November 15 Early 2022"]
[White "Baches Garcia, Guillermo"]
[Black "Sargsyan, Anna M."]
[WhiteFideId "2209764"]
[BlackFideId "13308130"]
[WhiteElo "2430"]
[BlackElo "2284"]
[Result "1-0"]
[Round "03"]
[TimeControl "180+1"]
[Date "2022.11.16"]
[WhiteClock "0:00:20"]
[BlackClock "0:00:01"]

1. e4 {[%clk 0:03:00]}  c6 {[%clk 0:02:59]} 2. d4 {[%clk 0:03:01]}  d5 {[%clk 0:03:00]} 3. e5 {[%clk 0:03:01]}  Bf5 {[%clk 0:02:59]} 4. Be3 {[%clk 0:03:01]}  e6 {[%clk 0:02:59]} 5. Nd2 {[%clk 0:03:01]}  Nd7 {[%clk 0:02:59]} 6. Be2 {[%clk 0:03:02]}  h6 {[%clk 0:02:59]} 7. Ngf3 {[%clk 0:03:00]}  Qc7 {[%clk 0:02:59]} 8. Nb3 {[%clk 0:02:59]}  Ne7 {[%clk 0:02:59]} 9. O-O {[%clk 0:02:57]}  g5 {[%clk 0:02:58]} 10. Rc1 {[%clk 0:02:51]}  Bg7 {[%clk 0:02:58]} 11. c4 {[%clk 0:02:51]}  O-O-O {[%clk 0:02:43]} 12. c5 {[%clk 0:02:38]}  f6 {[%clk 0:02:41]} 13. exf6 {[%clk 0:02:35]}  Bxf6 {[%clk 0:02:37]} 14. Bd2 {[%clk 0:02:32]}  Rdg8 {[%clk 0:02:26]} 15. Ba5 {[%clk 0:02:26]}  Qb8 {[%clk 0:02:22]} 16. Bd3 {[%clk 0:02:21]}  e5 {[%clk 0:02:15]} 17. dxe5 {[%clk 0:02:09]}  Nxe5 {[%clk 0:02:13]} 18. Bxf5+ {[%clk 0:01:47]}  Nxf5 {[%clk 0:02:12]} 19. Nfd4 {[%clk 0:01:33]}  Nxd4 {[%clk 0:02:06]} 20. Nxd4 {[%clk 0:01:33]}  Kd7 {[%clk 0:01:40]} 21. Qc2 {[%clk 0:01:24]}  Ke7 {[%clk 0:01:09]} 22. Rce1 {[%clk 0:01:18]}  Kf7 {[%clk 0:01:03]} 23. f4 {[%clk 0:01:12]}  gxf4 {[%clk 0:01:02]} 24. Rxf4 {[%clk 0:01:05]}  Rg6 {[%clk 0:00:13]} 25. Qf5 {[%clk 0:01:00]}  Kg7 {[%clk 0:00:05]} 26. Ne6+ {[%clk 0:01:00]}  Kh7 {[%clk 0:00:05]} 27. Rxe5 {[%clk 0:00:51]}  Qxe5 {[%clk 0:00:06]} 28. Qxe5 {[%clk 0:00:51]}  Bxe5 {[%clk 0:00:07]} 29. Rf7+ {[%clk 0:00:48]}  Kg8 {[%clk 0:00:07]} 30. Rf8+ {[%clk 0:00:45]}  Kh7 {[%clk 0:00:08]} 31. Rf7+ {[%clk 0:00:45]}  Bg7 {[%clk 0:00:03]} 32. Bc3 {[%clk 0:00:39]}  Rg8 {[%clk 0:00:02]} 33. Nf4 {[%clk 0:00:27]}  Rg4 {[%clk 0:00:01]} 34. g3 {[%clk 0:00:21]}  d4 {[%clk 0:00:01]} 35. Bxd4 {[%clk 0:00:20]} 1-0


[Site "https://www.chess.com"]

[Event "Titled Tuesday Blitz November 15 Early 2022"]
[White "Bacrot, Etienne"]
[Black "Taboas Rodriguez, Daniel"]
[WhiteFideId "605506"]
[BlackFideId "2208466"]
[WhiteElo "2847"]
[BlackElo "2560"]
[Result "1/2-1/2"]
[Round "03"]
[TimeControl "180+1"]
[Date "2022.11.16"]
[WhiteClock "0:00:06"]
[BlackClock "0:00:04"]

1. e4 {[%clk 0:03:00]}  e5 {[%clk 0:03:00]} 2. Nf3 {[%clk 0:03:00]}  Nc6 {[%clk 0:03:00]} 3. Bb5 {[%clk 0:03:00]}  Nf6 {[%clk 0:03:00]} 4. O-O {[%clk 0:03:00]}  Nxe4 {[%clk 0:03:00]} 5. Re1 {[%clk 0:03:00]}  Nd6 {[%clk 0:02:59]} 6. Nxe5 {[%clk 0:03:00]}  Be7 {[%clk 0:02:58]} 7. Bf1 {[%clk 0:03:00]}  Nxe5 {[%clk 0:02:58]} 8. Rxe5 {[%clk 0:03:00]}  O-O {[%clk 0:02:59]} 9. Nc3 {[%clk 0:03:00]}  Ne8 {[%clk 0:02:58]} 10. Nd5 {[%clk 0:03:00]}  Bd6 {[%clk 0:02:58]} 11. Re2 {[%clk 0:02:58]}  c6 {[%clk 0:02:57]} 12. Ne3 {[%clk 0:02:58]}  Bc7 {[%clk 0:02:55]} 13. Nf5 {[%clk 0:02:57]}  d5 {[%clk 0:02:55]} 14. Ne7+ {[%clk 0:02:57]}  Kh8 {[%clk 0:02:55]} 15. Nxc8 {[%clk 0:02:57]}  Rxc8 {[%clk 0:02:56]} 16. d3 {[%clk 0:02:55]}  Nd6 {[%clk 0:02:54]} 17. g3 {[%clk 0:02:53]}  Re8 {[%clk 0:02:53]} 18. Bd2 {[%clk 0:02:50]}  Qd7 {[%clk 0:02:52]} 19. Rxe8+ {[%clk 0:02:44]}  Rxe8 {[%clk 0:02:53]} 20. Qf3 {[%clk 0:02:44]}  Qf5 {[%clk 0:02:50]} 21. Qxf5 {[%clk 0:02:41]}  Nxf5 {[%clk 0:02:51]} 22. Kg2 {[%clk 0:02:37]}  Kg8 {[%clk 0:02:46]} 23. a4 {[%clk 0:02:37]}  Nd4 {[%clk 0:02:44]} 24. Rc1 {[%clk 0:02:33]}  f5 {[%clk 0:02:41]} 25. Be3 {[%clk 0:02:30]}  Ne6 {[%clk 0:02:34]} 26. b4 {[%clk 0:02:17]}  f4 {[%clk 0:02:33]} 27. Bd2 {[%clk 0:02:14]}  Kf7 {[%clk 0:02:31]} 28. c3 {[%clk 0:02:13]}  g5 {[%clk 0:02:25]} 29. Kf3 {[%clk 0:01:57]}  h5 {[%clk 0:02:13]} 30. g4 {[%clk 0:01:49]}  hxg4+ {[%clk 0:02:04]} 31. Kxg4 {[%clk 0:01:50]}  Rh8 {[%clk 0:02:05]} 32. h3 {[%clk 0:01:50]}  Rh4+ {[%clk 0:02:04]} 33. Kf3 {[%clk 0:01:46]}  Kf6 {[%clk 0:01:55]} 34. Re1 {[%clk 0:01:31]}  g4+ {[%clk 0:01:49]} 35. hxg4 {[%clk 0:01:30]}  Ng5+ {[%clk 0:01:49]} 36. Ke2 {[%clk 0:01:31]}  Rxg4 {[%clk 0:01:47]} 37. Bc1 {[%clk 0:01:23]}  Rg1 {[%clk 0:01:43]} 38. c4 {[%clk 0:01:20]}  d4 {[%clk 0:01:38]} 39. f3 {[%clk 0:00:59]}  Rh1 {[%clk 0:01:27]} 40. Kf2 {[%clk 0:00:58]}  Rh2+ {[%clk 0:01:24]} 41. Bg2 {[%clk 0:00:56]}  Rh8 {[%clk 0:01:06]} 42. Bb2 {[%clk 0:00:55]}  Be5 {[%clk 0:01:04]} 43. a5 {[%clk 0:00:48]}  Kf5 {[%clk 0:00:59]} 44. Rb1 {[%clk 0:00:40]}  Bf6 {[%clk 0:00:43]} 45. Ba3 {[%clk 0:00:36]}  Re8 {[%clk 0:00:39]} 46. Bc1 {[%clk 0:00:22]}  Nf7 {[%clk 0:00:21]} 47. Bh3+ {[%clk 0:00:19]}  Ke5 {[%clk 0:00:21]} 48. Bd2 {[%clk 0:00:16]}  Bh4+ {[%clk 0:00:21]} 49. Kf1 {[%clk 0:00:11]}  Bg3 {[%clk 0:00:20]} 50. Be1 {[%clk 0:00:10]}  Kf6 {[%clk 0:00:19]} 51. Bxg3 {[%clk 0:00:09]}  fxg3 {[%clk 0:00:20]} 52. Kg2 {[%clk 0:00:08]}  Re3 {[%clk 0:00:21]} 53. Rd1 {[%clk 0:00:08]}  Ne5 {[%clk 0:00:20]} 54. Bc8 {[%clk 0:00:08]}  b6 {[%clk 0:00:19]} 55. axb6 {[%clk 0:00:07]}  axb6 {[%clk 0:00:20]} 56. c5 {[%clk 0:00:07]}  bxc5 {[%clk 0:00:20]} 57. bxc5 {[%clk 0:00:08]}  Rxd3 {[%clk 0:00:19]} 58. Rh1 {[%clk 0:00:05]}  Rxf3 {[%clk 0:00:17]} 59. Rh6+ {[%clk 0:00:05]}  Kg5 {[%clk 0:00:17]} 60. Re6 {[%clk 0:00:04]}  Re3 {[%clk 0:00:17]} 61. Bb7 {[%clk 0:00:03]}  d3 {[%clk 0:00:17]} 62. Bxc6 {[%clk 0:00:03]}  d2 {[%clk 0:00:17]} 63. Ba4 {[%clk 0:00:03]}  Kf4 {[%clk 0:00:13]} 64. c6 {[%clk 0:00:03]}  Nxc6 {[%clk 0:00:12]} 65. Rxc6 {[%clk 0:00:03]}  Re2+ {[%clk 0:00:12]} 66. Kf1 {[%clk 0:00:03]}  g2+ {[%clk 0:00:07]} 67. Kxe2 {[%clk 0:00:02]}  g1=Q {[%clk 0:00:07]} 68. Rc4+ {[%clk 0:00:02]}  Ke5 {[%clk 0:00:06]} 69. Kxd2 {[%clk 0:00:02]}  Qf2+ {[%clk 0:00:04]} 70. Kc3 {[%clk 0:00:02]}  Qe1+ {[%clk 0:00:04]} 71. Kb3 {[%clk 0:00:03]}  Qb1+ {[%clk 0:00:04]} 72. Ka3 {[%clk 0:00:03]}  Qa1+ {[%clk 0:00:04]} 73. Kb3 {[%clk 0:00:03]}  Qb1+ {[%clk 0:00:04]} 74. Kc3 {[%clk 0:00:04]}  Qa1+ {[%clk 0:00:05]} 75. Kb4 {[%clk 0:00:05]}  Qb2+ {[%clk 0:00:05]} 76. Kc5 {[%clk 0:00:05]}  Qb8 {[%clk 0:00:05]} 77. Bb5 {[%clk 0:00:05]}  Qa7+ {[%clk 0:00:04]} 78. Kb4 {[%clk 0:00:06]}  Qe7+ {[%clk 0:00:04]} 79. Kb3 {[%clk 0:00:06]}  Qb7 {[%clk 0:00:04]} 80. Kb4 {[%clk 0:00:06]}  Qe7+ {[%clk 0:00:04]} 81. Kb3 {[%clk 0:00:07]}  Qb7 {[%clk 0:00:04]} 82. Rb4 {[%clk 0:00:07]}  Kd6 {[%clk 0:00:04]} 83. Ka4 {[%clk 0:00:06]}  Qa7+ {[%clk 0:00:03]} 84. Kb3 {[%clk 0:00:06]}  Qc5 {[%clk 0:00:04]} 85. Ba4 {[%clk 0:00:06]}  Qxb4+ {[%clk 0:00:04]} 86. Kxb4 {[%clk 0:00:06]} 1/2-1/2


[Site "https://www.chess.com"]

[Event "Titled Tuesday Blitz November 15 Early 2022"]
[White "Beerdsen, Thomas"]
[Black "Ristic, Nebojsa B"]
[WhiteFideId "1030108"]
[BlackFideId "935468"]
[WhiteElo "2567"]
[BlackElo "2320"]
[Result "1-0"]
[Round "03"]
[TimeControl "180+1"]
[Date "2022.11.16"]
[WhiteClock "0:02:01"]
[BlackClock "0:02:08"]

1. e4 {[%clk 0:03:00]}  Nc6 {[%clk 0:03:00]} 2. Nc3 {[%clk 0:02:59]}  d6 {[%clk 0:03:01]} 3. d4 {[%clk 0:02:58]}  Nf6 {[%clk 0:03:00]} 4. Nf3 {[%clk 0:02:58]}  g6 {[%clk 0:03:00]} 5. h3 {[%clk 0:02:57]}  Bg7 {[%clk 0:03:00]} 6. Be3 {[%clk 0:02:57]}  O-O {[%clk 0:03:00]} 7. Qd2 {[%clk 0:02:57]}  a6 {[%clk 0:03:00]} 8. Bh6 {[%clk 0:02:55]}  b5 {[%clk 0:03:00]} 9. a3 {[%clk 0:02:55]}  Bb7 {[%clk 0:02:59]} 10. Bd3 {[%clk 0:02:55]}  e5 {[%clk 0:02:55]} 11. d5 {[%clk 0:02:48]}  Na5 {[%clk 0:02:52]} 12. h4 {[%clk 0:02:42]}  c5 {[%clk 0:02:37]} 13. b4 {[%clk 0:02:22]}  cxb4 {[%clk 0:02:29]} 14. axb4 {[%clk 0:02:23]}  Nc4 {[%clk 0:02:29]} 15. Bxc4 {[%clk 0:02:24]}  bxc4 {[%clk 0:02:30]} 16. h5 {[%clk 0:02:24]}  Qd7 {[%clk 0:02:23]} 17. Bxg7 {[%clk 0:02:09]}  Kxg7 {[%clk 0:02:24]} 18. Qg5 {[%clk 0:02:01]}  Qg4 {[%clk 0:02:11]} 19. h6+ {[%clk 0:02:01]}  Kg8 {[%clk 0:02:08]} 20. Qxf6 {[%clk 0:02:01]} 1-0


[Site "https://www.chess.com"]